Workbook

Sheet Tabelle1
D2: Canasta Scorelist | H2: 2016-12-09
D4: Mädels | F4: Diff. | G4: Männers
B6: Nr.
B7: 1 | C7: C | D7: 860 | E7: =IF(D7=0,"",D7) -> 860 | F7: =IF(OR(D7=0,G7=0),"",H7-E7) -> -100 | G7: 760 | H7: =IF(G7=0,"",G7) -> 760
B8: 2 | D8: -425 | E8: =IF(D8=0,"",D8+E7) -> 435 | F8: =IF(OR(D8=0,G8=0),"",H8-E8) -> 1410 | G8: 1085 | H8: =IF(G8=0,"",G8+H7) -> 1845
B9: 3 | D9: 755 | E9: =IF(D9=0,"",D9+E8) -> 1190 | F9: =IF(OR(D9=0,G9=0),"",H9-E9) -> 1670 | G9: 1015 | H9: =IF(G9=0,"",G9+H8) -> 2860
B10: 4 | D10: 500 | E10: 1690 | F10: 1840 | G10: 670 | H10: 3530
B11: 5 | C11: C | D11: 1355 | E11: 3045 | F11: 1050 | G11: 565 | H11: 4095
B12: 6 | D12: 1160 | E12: 4205 | F12: 500 | G12: 610 | H12: 4705
B13: 7 | D13: 985 | E13: 5190 | F13: 1210 | G13: 1695 | H13: 6400
B14: 8 | D14: 1120 | E14: 6310 | F14: 985 | G14: 895 | H14: 7295
B15: 9 | C15: C | D15: 465 | E15: 6775 | F15: 1170 | G15: 650 | H15: 7945
B16: 10 | D16: 1455 | E16: 8230 | F16: 740 | G16: 1025 | H16: 8970
B17: 11 | D17: 660 | E17: 8890 | F17: 370 | G17: 290 | H17: 9260
B18: 12 | D18: 775 | E18: 9665 | F18: 130 | G18: 535 | H18: 9795
B19: 13 | C19: C | D19: 905 | E19: =IF(D19=0,"",D19+E18) -> 10570 | F19: 30 | G19: 805 | H19: =IF(G19=0,"",G19+H18) -> 10600
B20: 14 | D20: 1770 | E20: 12340 | F20: -415 | G20: 1325 | H20: 11925
B21: 15 | D21: 1530 | E21: 13870 | F21: -1315 | G21: 630 | H21: 12555
B22: 16 | D22: 830 | E22: 14700 | F22: -1470 | G22: 675 | H22: 13230
B23: 17 | C23: C | D23: 770 | E23: 15470 | F23: -950 | G23: 1290 | H23: 14520
B24: 18 | D24: 785 | E24: 16255 | F24: -970 | G24: 765 | H24: 15285
B25: 19 | D25: -260 | E25: 15995 | F25: -65 | G25: 645 | H25: 15930
B26: 20 | D26: 770 | E26: 16765 | F26: -150 | G26: 685 | H26: 16615
B27: 21 | C27: C | D27: -445 | E27: 16320 | F27: 955 | G27: 660 | H27: 17275 | I27: x
B28: =B27+1 -> 22 | D28: 1065 | E28: 17385 | F28: 1795 | G28: 1905 | H28: 19180
B29: =B28+1 -> 23 | D29: 755 | E29: 18140 | F29: 1565 | G29: 525 | H29: 19705
B30: 24 | D30: 840 | E30: 18980 | F30: 1350 | G30: 625 | H30: 20330
B31: 25 | C31: C | D31: -265 | E31: =IF(D31=0,"",D31+E30) -> 18715 | F31: 2200 | G31: 585 | H31: =IF(G31=0,"",G31+H30) -> 20915 | I31: x
B32: =B31+1 -> 26 | D32: 990 | E32: =IF(D32=0,"",D32+E31) -> 19705 | F32: =IF(OR(D32=0,G32=0),"",H32-E32) -> 2595 | G32: 1385 | H32: =IF(G32=0,"",G32+H31) -> 22300
B33: =B32+1 -> 27 | D33: 1080 | E33: 20785 | F33: 2665 | G33: 1150 | H33: 23450
B34: =B33+1 -> 28 | D34: 400 | E34: 21185 | F34: 3175 | G34: 910 | H34: 24360
B35: =B34+1 -> 29 | C35: C | D35: 585 | E35: =IF(D35=0,"",D35+E34) -> 21770 | F35: 2150 | G35: -440 | H35: =IF(G35=0,"",G35+H34) -> 23920
B36: =B35+1 -> 30 | D36: 1315 | E36: =IF(D36=0,"",D36+E35) -> 23085 | F36: =IF(OR(D36=0,G36=0),"",H36-E36) -> 1915 | G36: 1080 | H36: =IF(G36=0,"",G36+H35) -> 25000
B37: =B36+1 -> 31 | D37: 1130 | E37: 24215 | F37: 1390 | G37: 605 | H37: 25605
B38: =B37+1 -> 32 | D38: 800 | E38: 25015 | F38: 1275 | G38: 685 | H38: 26290
B39: =B38+1 -> 33 | C39: C | D39: 1055 | E39: =IF(D39=0,"",D39+E38) -> 26070 | F39: 845 | G39: 625 | H39: =IF(G39=0,"",G39+H38) -> 26915
B41: Platz | E41: =IF(F7="","",IF(E45<0,"1.","2.")) -> 2. | H41: =IF(F7="","",IF(E45<0,"2.","1.")) -> 1.
D43: MinusSp. | E43: =COUNTIF(D:D,"<0") -> 4 | G43: MinusSp. | H43: =COUNTIF(G:G,"<0") -> 1
E45: =INDEX(F:F,E46-1) -> 0
E46: =MATCH("",F:F,-1) -> 4

Sheet Tabelle2

Sheet Tabelle3
